bitfinex/quotes_BTCUSD_20251021
["timestamp","ask_amount","ask_price","bid_price","bid_amount"]
[1761035486956,3.63661556,107980.0,107970.0,0.01326673]
[1761035487159,3.63761556,107980.0,107970.0,0.01326673]
[1761035487468,3.63861556,107980.0,107970.0,0.01326673]
[1761035488763,3.72843457,107980.0,107970.0,0.01326673]
[1761035489555,3.74296267,107980.0,107970.0,0.01326673]
[1761035490419,3.74196267,107980.0,107970.0,0.01326673]
[1761035490635,3.54722876,107980.0,107970.0,0.01326673]
[1761035490832,3.64262923,107980.0,107970.0,0.01326673]
[1761035491004,3.67881151,107980.0,107970.0,0.01326673]
[1761035491203,3.6888115,107980.0,107970.0,0.01326673]
[1761035492025,3.6888115,107980.0,107960.0,0.0002]
[1761035492168,3.38558682,107970.0,107960.0,0.00069611]
[1761035492595,3.72558682,107970.0,107960.0,0.00069611]
[1761035493264,3.72558682,107970.0,107960.0,0.00105028]
[1761035494651,3.18525379,107960.0,107950.0,0.02033028]
[1761035494856,3.26964744,107960.0,107950.0,0.02037989]
[1761035495068,3.26964744,107960.0,107950.0,0.02073411]
[1761035495609,3.29751135,107960.0,107950.0,0.02073411]
[1761035495793,3.38628744,107960.0,107950.0,0.02073411]
[1761035496005,3.18525379,107960.0,107950.0,0.02073411]
[1761035496223,0.30189379,107960.0,107950.0,0.20600506]
[1761035496411,0.30189379,107960.0,107950.0,0.02073411]
[1761035496654,3.30189379,107960.0,107950.0,0.02073411]
[1761035497803,0.52523663,107970.0,107950.0,0.20600506]
[1761035497995,0.52523663,107970.0,107960.0,0.18525379]
[1761035497996,3.0,107970.0,107960.0,0.18525379]
[1761035498193,0.11664,107980.0,107970.0,0.18523663]
[1761035498447,0.30185948,107980.0,107970.0,0.20376029]
[1761035498674,0.11664,107980.0,107970.0,0.20376029]
[1761035498806,3.18521948,107980.0,107970.0,0.20376029]
[1761035499003,0.18521948,107980.0,107970.0,0.20376029]
[1761035499247,0.18523663,107970.0,107960.0,0.1852525]
[1761035499399,0.18523663,107970.0,107950.0,0.32268506]
[1761035499600,0.18523663,107970.0,107950.0,0.13741411]
[1761035499601,0.18525379,107960.0,107950.0,0.13741411]
[1761035499850,0.18525379,107960.0,107950.0,0.02073411]
[1761035500055,3.18525379,107960.0,107950.0,0.22453215]
[1761035500297,0.18525379,107960.0,107950.0,0.20600506]
[1761035500659,3.18525379,107960.0,107950.0,0.02073411]
[1761035500863,3.18525379,107960.0,107950.0,0.02173411]
[1761035501280,3.18525379,107960.0,107950.0,0.02073411]
[1761035501806,0.18525379,107960.0,107950.0,0.20600506]
[1761035502100,0.18525379,107960.0,107950.0,0.02073411]
[1761035502403,3.31836448,107960.0,107950.0,0.02073411]
[1761035502683,3.65836448,107960.0,107950.0,0.02073411]
[1761035502888,3.60964744,107960.0,107950.0,0.02073411]
[1761035503764,3.61064744,107960.0,107950.0,0.02073411]
[1761035503954,3.61164744,107960.0,107950.0,0.02073411]
[1761035505719,3.63951028,107960.0,107950.0,0.02073411]
[1761035506685,0.18528812,107940.0,107930.0,0.25770459]
[1761035507030,0.18527095,107950.0,107930.0,0.25785331]
[1761035507163,0.52527095,107950.0,107930.0,0.25785331]
[1761035507371,0.18528812,107940.0,107930.0,0.25785331]
[1761035508006,0.52527095,107950.0,107940.0,0.18528812]
[1761035508246,0.18527095,107950.0,107940.0,0.20381693]
[1761035508467,0.65127647,107960.0,107940.0,0.20381693]
[1761035508977,0.31127647,107960.0,107940.0,0.20381693]
[1761035509442,0.18527095,107950.0,107940.0,0.20381693]
[1761035510138,0.31127647,107960.0,107940.0,0.20381693]
[1761035510970,0.18527095,107950.0,107940.0,0.20381693]
[1761035511168,0.31127647,107960.0,107950.0,0.18527095]
[1761035511390,0.11676,107960.0,107950.0,0.18527095]
[1761035511612,0.54902715,107970.0,107950.0,0.20379804]
[1761035511822,0.18525379,107960.0,107950.0,0.20379804]
[1761035512334,0.66582715,107970.0,107960.0,0.18525379]
[1761035512755,0.31656532,107970.0,107960.0,0.18525379]
[1761035512977,0.30203663,107970.0,107960.0,0.18525379]
[1761035513761,0.30203663,107970.0,107950.0,0.18527095]
[1761035513963,0.30203663,107970.0,107960.0,0.18525379]
[1761035514213,0.18525379,107960.0,107950.0,0.18527095]
[1761035514372,0.18525379,107960.0,107950.0,0.20379804]
[1761035514577,0.30203663,107970.0,107960.0,0.18525379]
[1761035514788,0.30203663,107970.0,107950.0,0.18527095]
[1761035514990,0.30203663,107970.0,107950.0,0.20379804]
[1761035515184,0.18525379,107960.0,107950.0,0.01852709]
[1761035515644,0.18525379,107960.0,107950.0,0.20379804]
[1761035515981,0.18472379,107960.0,107950.0,0.20379804]
[1761035517291,0.18472379,107960.0,107950.0,0.01852709]
[1761035517538,0.18527095,107950.0,107940.0,0.19490679]
[1761035518086,0.18527095,107950.0,107940.0,0.18564239]
[1761035518291,0.18472379,107960.0,107940.0,0.18564239]
[1761035518964,0.18472379,107960.0,107940.0,0.18664239]
[1761035519570,0.18527095,107950.0,107940.0,0.18664239]
[1761035520465,0.18527095,107950.0,107940.0,0.18764239]
[1761035520858,0.18527095,107950.0,107940.0,0.00135427]
[1761035521082,0.18527095,107950.0,107940.0,0.18664239]
[1761035521433,0.18472379,107960.0,107940.0,0.18664239]
[1761035521628,0.18527095,107950.0,107940.0,0.18564239]
[1761035522419,3.67907042,107950.0,107940.0,0.00035427]
[1761035522628,3.72689366,107950.0,107940.0,0.00035427]
[1761035525863,0.18528812,107940.0,107930.0,0.0356371]
[1761035526100,3.27053997,107940.0,107930.0,0.0356371]
[1761035527613,3.66388846,107940.0,107930.0,0.0356371]
[1761035527841,3.61053997,107940.0,107930.0,0.0356371]
[1761035530481,3.61153997,107940.0,107930.0,0.0356371]
[1761035531134,3.6394096,107940.0,107930.0,0.0356371]
[1761035531248,3.6404096,107940.0,107930.0,0.0356371]
[1761035531454,3.7572496,107940.0,107930.0,0.03599141]
[1761035531687,0.72937997,107940.0,107930.0,0.03599141]
[1761035532120,0.002,107940.0,107930.0,0.2212967]
[1761035532321,0.18728812,107940.0,107930.0,0.2212967]
[1761035532529,3.52628812,107940.0,107930.0,0.03599141]
[1761035533061,3.52628812,107940.0,107930.0,0.00199141]
[1761035533267,3.52528812,107940.0,107930.0,0.00199141]
[1761035534664,0.52528812,107940.0,107930.0,0.00199141]
[1761035538136,0.34,107940.0,107930.0,0.1872967]
[1761035538375,0.64208812,107940.0,107930.0,0.20582722]
[1761035538526,0.4568,107940.0,107930.0,0.1872967]
[1761035540043,0.4568,107940.0,107930.0,0.1482967]
[1761035540291,0.52528812,107940.0,107930.0,0.16682722]
[1761035540738,0.54181711,107950.0,107940.0,0.18528812]
[1761035541240,0.35654616,107950.0,107940.0,0.20381693]
[1761035541416,0.54181711,107950.0,107940.0,0.20381693]
[1761035543605,0.57099755,107950.0,107940.0,0.01852881]
[1761035543810,0.18530523,107940.0,107930.0,0.1168]
[1761035544017,0.18530523,107940.0,107920.0,0.31158858]
[1761035544231,0.18530523,107940.0,107920.0,0.31163813]
[1761035545220,0.30206523,107940.0,107920.0,0.31163813]
[1761035545824,0.30206523,107940.0,107930.0,0.18530529]
[1761035546147,0.18528812,107940.0,107930.0,0.20383581]
[1761035547301,0.18528812,107940.0,107930.0,0.13783581]
[1761035548269,0.75266336,107950.0,107940.0,0.18528812]
[1761035548614,0.18528812,107940.0,107930.0,0.18530529]
[1761035548736,0.18528812,107940.0,107930.0,0.20383581]
[1761035550874,0.75266336,107950.0,107930.0,0.19609854]
[1761035551701,0.75266336,107950.0,107940.0,0.18528812]
[1761035551869,0.75266336,107950.0,107930.0,0.18530529]
[1761035552075,0.18528812,107940.0,107930.0,0.20250767]
[1761035552781,0.18528812,107940.0,107930.0,0.01720238]
[1761035553212,0.18528812,107940.0,107930.0,0.20250767]
[1761035553614,0.18528812,107940.0,107930.0,0.18530529]
[1761035553825,0.18528812,107940.0,107920.0,0.31163813]
[1761035553976,0.18528812,107940.0,107930.0,0.20383581]
[1761035554790,0.52528812,107940.0,107930.0,0.01853052]
[1761035555005,3.52530529,107930.0,107920.0,0.00024955]
[1761035555198,3.72753175,107930.0,107920.0,0.00024955]
[1761035555401,0.18535265,107910.0,107890.0,0.12601199]
[1761035555610,0.11692,107910.0,107900.0,0.20389249]
[1761035555968,0.30225963,107910.0,107900.0,0.18535681]
[1761035556914,0.30225963,107910.0,107890.0,0.12616113]
[1761035557127,0.30225963,107910.0,107890.0,0.13658762]
[1761035557415,0.30225963,107910.0,107900.0,0.18535681]
[1761035557625,0.11692,107910.0,107900.0,0.18535681]
[1761035557992,0.30225963,107910.0,107900.0,0.18535681]
[1761035558236,0.11696,107910.0,107900.0,0.18535681]
[1761035561089,0.11696,107910.0,107900.0,0.18642011]
[1761035561526,0.52532246,107920.0,107910.0,0.18533963]
[1761035561939,0.64228246,107920.0,107910.0,0.18533963]
[1761035562484,0.52532246,107920.0,107910.0,0.15333963]
[1761035562703,0.34,107920.0,107910.0,0.15333963]
[1761035562912,3.18530529,107930.0,107920.0,0.18532246]
[1761035563116,0.30226529,107930.0,107920.0,0.18532246]
[1761035563327,0.64226529,107930.0,107920.0,0.18532246]
[1761035564154,0.18532246,107920.0,107910.0,0.16260661]
[1761035564541,0.18532246,107920.0,107900.0,0.18535652]
[1761035564741,0.30229963,107910.0,107900.0,0.18535652]
[1761035565018,0.117,107920.0,107910.0,0.18533103]
[1761035565379,0.11708,107920.0,107910.0,0.18533103]
[1761035566158,0.30240246,107920.0,107910.0,0.18533103]
[1761035567003,0.18532246,107920.0,107910.0,0.18603983]
[1761035567132,0.30240246,107920.0,107910.0,0.18603983]
[1761035567731,0.53457055,107930.0,107920.0,0.18532246]
[1761035567928,0.65165055,107930.0,107920.0,0.18532246]
[1761035568154,0.18532246,107920.0,107910.0,0.18533103]
[1761035569147,0.65165055,107930.0,107910.0,0.18533103]
[1761035569346,0.11708,107920.0,107910.0,0.18533103]
[1761035569564,0.11708,107920.0,107910.0,0.13133103]
[1761035569768,0.11708,107920.0,107910.0,0.14986499]
[1761035570202,0.53457055,107930.0,107910.0,0.14986499]
[1761035570404,0.64238529,107930.0,107920.0,0.18532246]
[1761035570642,0.52530529,107930.0,107920.0,0.18532246]
[1761035570823,0.64238529,107930.0,107920.0,0.2038547]
[1761035570953,0.52530529,107930.0,107920.0,0.2038547]
[1761035571157,0.64234529,107930.0,107920.0,0.2038547]
[1761035571361,0.64234529,107930.0,107920.0,0.01853224]
[1761035571560,0.64234529,107930.0,107920.0,0.18532246]
[1761035572811,0.34,107940.0,107930.0,0.18529873]
[1761035573053,0.64232812,107940.0,107930.0,0.18529873]
[1761035573447,0.52528812,107940.0,107930.0,0.18529873]
[1761035573654,0.64232812,107940.0,107930.0,0.20382925]
[1761035574101,0.64432812,107940.0,107930.0,0.01853052]
[1761035574308,0.64332812,107940.0,107930.0,0.01853052]
[1761035574510,0.18530529,107930.0,107920.0,0.19494295]
[1761035574710,0.18530529,107930.0,107920.0,0.19509209]
[1761035575088,0.64332812,107940.0,107920.0,0.19509209]
[1761035575988,0.18530529,107930.0,107920.0,0.19509209]
[1761035576308,0.64232812,107940.0,107920.0,0.19509209]
[1761035576717,0.64232812,107940.0,107920.0,0.15909209]
[1761035576921,0.64232812,107940.0,107920.0,0.17762433]
[1761035577085,0.64232812,107940.0,107920.0,0.17862433]
[1761035577270,0.64232812,107940.0,107920.0,0.17762433]
[1761035577874,0.18530529,107930.0,107920.0,0.17762433]
[1761035578293,0.64232812,107940.0,107920.0,0.17762433]
[1761035579277,0.18530529,107930.0,107920.0,0.17762433]
[1761035579484,0.64232812,107940.0,107920.0,0.17762433]
[1761035579892,0.64232812,107940.0,107920.0,0.17862433]
[1761035580311,0.18530529,107930.0,107920.0,0.17762433]
[1761035580535,0.18530529,107930.0,107920.0,0.17862433]
[1761035580764,0.64232812,107940.0,107920.0,0.17762433]
[1761035581393,0.18530529,107930.0,107920.0,0.17762433]
[1761035581603,0.18530529,107930.0,107920.0,0.01903575]
[1761035581806,0.18530529,107930.0,107920.0,0.00150351]
[1761035582149,0.18530529,107930.0,107920.0,0.00050351]
[1761035582978,0.18530529,107930.0,107920.0,0.00150351]
[1761035583178,0.18530529,107930.0,107920.0,0.18682597]
[1761035583382,0.18530529,107930.0,107920.0,0.18582597]
[1761035583803,0.18530529,107930.0,107920.0,0.12382597]
[1761035584202,0.18530529,107930.0,107910.0,0.25763801]
[1761035584499,0.18530529,107930.0,107920.0,0.18532246]
[1761035587408,0.18530529,107930.0,107920.0,0.2038547]
[1761035587730,0.18530529,107930.0,107920.0,0.18532246]
[1761035587885,0.18530529,107930.0,107920.0,0.2038547]
[1761035588308,0.64232812,107940.0,107930.0,0.18530529]
[1761035588496,0.64239696,107940.0,107930.0,0.18530529]
[1761035589153,0.34014884,107940.0,107930.0,0.18530529]
[1761035589344,0.00014884,107940.0,107930.0,0.20383581]
[1761035589502,0.30243696,107940.0,107930.0,0.20383581]
[1761035589709,0.11714884,107940.0,107930.0,0.20383581]
[1761035589904,0.30243696,107940.0,107930.0,0.20383581]
[1761035590100,0.11714884,107940.0,107930.0,0.20383581]
[1761035590337,0.30243696,107940.0,107930.0,0.20383581]
[1761035591061,0.30243696,107940.0,107930.0,0.14983581]
[1761035591279,0.30243696,107940.0,107930.0,0.01853052]
[1761035591492,0.30243696,107940.0,107920.0,0.30232246]
[1761035591836,0.30243696,107940.0,107930.0,0.18530529]
[1761035592038,0.30243696,107940.0,107930.0,0.20383581]
[1761035593482,0.30118293,107940.0,107930.0,0.20383581]
[1761035595120,0.11696,107940.0,107930.0,0.19647617]
[1761035595329,0.30224812,107940.0,107930.0,0.19647617]
[1761035595552,0.03107761,107950.0,107940.0,0.18528812]
[1761035595759,0.37107761,107950.0,107940.0,0.18528812]
[1761035595971,0.48548005,107960.0,107940.0,0.20381693]
[1761035596188,0.18527095,107950.0,107940.0,0.20381693]
[1761035596602,0.60244005,107960.0,107940.0,0.20381693]
[1761035596809,0.18527095,107950.0,107940.0,0.20381693]
[1761035597483,0.49474273,107960.0,107940.0,0.20381693]
[1761035597717,0.61170273,107960.0,107950.0,0.18527095]
[1761035597972,0.19641258,107970.0,107960.0,0.18525379]
[1761035598200,0.19641258,107970.0,107950.0,0.18527095]
[1761035598422,0.18525379,107960.0,107950.0,0.18527095]
[1761035599090,0.18525379,107960.0,107950.0,0.20379804]
[1761035600192,0.18525379,107960.0,107950.0,0.32075804]
[1761035600409,0.18525379,107960.0,107950.0,0.30223095]
[1761035601320,0.31337258,107970.0,107950.0,0.30223095]
[1761035601555,0.18525379,107960.0,107950.0,0.30223095]
[1761035602015,0.18525379,107960.0,107950.0,0.30227095]
[1761035602244,0.31337258,107970.0,107950.0,0.30227095]
[1761035603065,0.65337258,107970.0,107950.0,0.30227095]
[1761035603468,0.11876652,107970.0,107950.0,0.30227095]
[1761035603723,0.64403195,107970.0,107950.0,0.30227095]
[1761035603932,0.18525379,107960.0,107950.0,0.30227095]
[1761035606690,0.53633378,107970.0,107950.0,0.30227095]
[1761035607314,0.18525379,107960.0,107950.0,0.30227095]
[1761035608207,0.53633378,107970.0,107950.0,0.30227095]
[1761035609430,0.53633378,107970.0,107960.0,0.18525379]
[1761035609765,0.18525379,107960.0,107950.0,0.30227095]
[1761035610856,0.18525379,107960.0,107950.0,0.30231095]
[1761035611117,0.18525379,107960.0,107950.0,0.28031095]
[1761035616714,0.18525379,107960.0,107950.0,0.30231095]
[1761035616912,0.18525379,107960.0,107950.0,8e-05]
[1761035617152,0.18525379,107960.0,107950.0,0.30219095]
[1761035618980,0.18525379,107960.0,107950.0,0.18535095]
[1761035619417,0.53633378,107970.0,107950.0,0.18535095]
[1761035619661,0.64384315,107970.0,107960.0,0.18525379]
[1761035620486,0.64384315,107970.0,107950.0,0.18535095]
[1761035620702,0.18525379,107960.0,107950.0,0.18535095]
[1761035620907,0.52704315,107970.0,107960.0,0.18525379]
[1761035622163,0.34180652,107970.0,107960.0,0.18525379]
[1761035622367,0.52704315,107970.0,107960.0,0.18525379]
[1761035623225,0.52704315,107970.0,107960.0,0.14525379]
[1761035624038,0.52704315,107970.0,107960.0,0.18525379]
[1761035626449,0.52704315,107970.0,107950.0,0.18535095]
[1761035626714,0.52704315,107970.0,107960.0,0.18525379]
[1761035628634,0.18525379,107960.0,107950.0,0.18535095]
[1761035628831,0.52704315,107970.0,107960.0,0.18525379]
[1761035629067,0.18525379,107960.0,107950.0,8e-05]
[1761035629282,0.18525379,107960.0,107950.0,0.18535095]
[1761035641196,0.18525379,107960.0,107950.0,8e-05]
[1761035641624,0.18525379,107960.0,107950.0,0.18535095]
[1761035641895,0.6110078,107970.0,107960.0,0.18525379]
[1761035642101,0.7277278,107970.0,107960.0,0.18525379]
[1761035642462,0.64376315,107970.0,107960.0,0.18525379]
[1761035642670,0.64376315,107970.0,107950.0,0.18535095]
[1761035643276,0.18525379,107960.0,107950.0,0.18535095]
[1761035645199,0.64376315,107970.0,107950.0,0.18535095]
[1761035645409,0.52704315,107970.0,107960.0,0.18525379]
[1761035645653,0.64376315,107970.0,107960.0,0.18525379]
[1761035646058,0.64376315,107970.0,107950.0,0.18535095]
[1761035646671,0.64376315,107970.0,107960.0,0.18525379]
[1761035647515,0.00180652,107970.0,107960.0,0.32049916]
[1761035647721,0.00180652,107970.0,107960.0,0.3917928]
[1761035649839,0.00180652,107970.0,107960.0,0.3927928]
[1761035650261,0.00180652,107970.0,107960.0,0.3917928]
[1761035650467,0.00180652,107970.0,107960.0,0.3927928]
[1761035650679,0.00180652,107970.0,107960.0,0.3937928]
[1761035650884,0.00180652,107970.0,107960.0,0.3927928]
[1761035651058,0.00180652,107970.0,107960.0,0.3917928]
[1761035651266,0.00180652,107970.0,107960.0,0.3937928]
[1761035653081,0.18522042,107980.0,107970.0,0.18523663]
[1761035653285,0.18571745,107980.0,107970.0,0.18523663]
[1761035653495,0.00049703,107980.0,107970.0,0.18523663]
[1761035653708,0.18571745,107980.0,107970.0,0.18523663]
[1761035655154,0.18571745,107980.0,107970.0,0.11623663]
[1761035658458,0.00049703,107980.0,107970.0,0.11623663]
[1761035658670,0.00049703,107980.0,107970.0,0.13476029]
[1761035660627,0.18571651,107980.0,107970.0,0.13476029]
[1761035660836,0.18571651,107980.0,107970.0,0.11623663]
[1761035661811,0.18571651,107980.0,107970.0,0.13476029]
[1761035661812,0.00049703,107980.0,107970.0,0.13476029]
[1761035662041,0.18571651,107980.0,107970.0,0.13476029]
[1761035662219,0.18571651,107980.0,107970.0,0.07876029]
[1761035662430,0.18571651,107980.0,107970.0,0.01852366]
[1761035662776,0.18571651,107980.0,107960.0,0.30236339]
[1761035662777,0.18523663,107970.0,107960.0,0.30236339]
[1761035664032,0.18523663,107970.0,107960.0,0.1171096]
[1761035664168,0.18523663,107970.0,107960.0,0.1181096]
[1761035664599,0.18523663,107970.0,107960.0,0.1191096]
[1761035664851,0.18523663,107970.0,107960.0,0.0023896]
[1761035664852,0.52523663,107970.0,107960.0,0.0023896]
[1761035665148,0.5530943,107970.0,107960.0,0.0023896]
[1761035665354,0.63705895,107970.0,107960.0,0.0013896]
[1761035666584,0.63705895,107970.0,107960.0,0.0003896]
[1761035667400,0.63580527,107970.0,107960.0,0.0003896]
[1761035672022,0.02785767,107970.0,107960.0,0.20416876]
[1761035672231,0.18523663,107970.0,107960.0,0.18564339]
[1761035673920,0.30239838,107980.0,107960.0,0.18564339]
[1761035674139,0.38614857,107980.0,107960.0,0.18564339]
[1761035675914,0.18523663,107970.0,107960.0,0.18564339]
[1761035677447,0.18523663,107970.0,107960.0,0.0003896]
[1761035677659,0.18523663,107970.0,107960.0,0.18564339]
[1761035678904,0.18523663,107970.0,107960.0,0.0003896]
[1761035679111,0.18523663,107970.0,107960.0,0.18564339]
[1761035680379,0.18523663,107970.0,107960.0,0.0003896]
[1761035680783,0.18523663,107970.0,107960.0,0.18564339]
[1761035683465,0.18523663,107970.0,107960.0,0.0004296]
[1761035684806,0.18523663,107970.0,107960.0,0.18568339]
[1761035685656,0.29732621,107980.0,107960.0,0.18568339]
[1761035685935,0.41400621,107980.0,107960.0,0.18568339]
[1761035686828,0.18523663,107970.0,107960.0,0.18568339]
[1761035690067,0.18523663,107970.0,107960.0,0.0004296]
[1761035690861,0.18523663,107970.0,107960.0,0.18568339]
[1761035691039,0.18523663,107970.0,107960.0,0.0004296]
[1761035691187,0.52523663,107970.0,107960.0,0.0004296]
[1761035695572,3.52523663,107970.0,107960.0,0.0004296]
[1761035698746,0.52523663,107970.0,107960.0,0.0004296]
[1761035709117,0.53976516,107970.0,107960.0,0.0004296]
[1761035710749,0.62372981,107970.0,107960.0,0.0004296]
[1761035714158,0.65158805,107970.0,107960.0,0.0004296]
[1761035717440,0.62372981,107970.0,107960.0,0.0004296]
[1761035719994,0.62372981,107970.0,107960.0,0.18568339]
[1761035720379,0.62372981,107970.0,107960.0,0.0004296]
[1761035720594,0.35452853,107970.0,107960.0,0.0004296]
[1761035720758,0.01452853,107970.0,107960.0,0.18568339]
[1761035720960,0.67026307,107980.0,107960.0,0.30236339]
[1761035721629,0.67026307,107980.0,107970.0,0.18523663]
[1761035721824,0.67026307,107980.0,107960.0,0.30236339]
[1761035722362,0.18523663,107970.0,107960.0,0.30236339]
[1761035722981,0.18523663,107970.0,107960.0,0.1171096]
[1761035723193,0.18523663,107970.0,107960.0,0.0004296]
[1761035723392,0.18523663,107970.0,107960.0,0.18568339]
[1761035724163,0.18523663,107970.0,107960.0,0.18668339]
[1761035724379,0.18523663,107970.0,107960.0,0.18568339]
[1761035725185,0.18523663,107970.0,107960.0,0.18668339]
[1761035725594,0.18523663,107970.0,107960.0,0.18568339]
[1761035727124,0.55358307,107980.0,107960.0,0.18568339]
[1761035727331,0.67026307,107980.0,107960.0,0.18568339]
[1761035727751,0.64240483,107980.0,107960.0,0.18568339]
[1761035727957,0.64240483,107980.0,107970.0,0.18523663]
[1761035728799,0.64240483,107980.0,107960.0,0.18568339]
[1761035729845,0.64240483,107980.0,107970.0,0.18523663]
[1761035730924,0.64240483,107980.0,107960.0,0.18568339]
[1761035732670,0.62802449,107980.0,107960.0,0.18568339]
[1761035732888,0.18523663,107970.0,107960.0,0.18568339]
[1761035733102,0.62802449,107980.0,107960.0,0.18568339]
[1761035733554,0.62802449,107980.0,107960.0,0.18572339]
[1761035734602,0.62802449,107980.0,107970.0,0.18523663]
[1761035736114,0.52521948,107980.0,107970.0,0.20376029]
[1761035736996,0.52521948,107980.0,107970.0,0.32044029]
[1761035737222,0.52521948,107980.0,107970.0,0.30191663]
[1761035738093,0.52521948,107980.0,107970.0,0.30195663]
[1761035739421,0.52521948,107980.0,107970.0,0.23695663]
[1761035740216,0.18521948,107980.0,107970.0,0.23695663]
[1761035740422,0.32567178,107990.0,107970.0,0.23695663]
[1761035740632,0.40904278,107990.0,107970.0,0.23695663]
[1761035740848,0.18521948,107980.0,107970.0,0.23695663]
[1761035746596,0.18521948,107980.0,107970.0,0.17295663]
[1761035746819,0.18521948,107980.0,107970.0,0.19148029]
[1761035747008,0.29236278,107990.0,107970.0,0.19148029]
[1761035748575,0.18521948,107980.0,107970.0,0.19148029]
[1761035748992,0.29236278,107990.0,107970.0,0.19148029]
[1761035749266,0.29236278,107990.0,107980.0,0.18521948]
[1761035749394,0.35457731,107990.0,107980.0,0.18521948]
[1761035749599,4.968e-05,107990.0,107980.0,0.20374142]
[1761035753505,4.968e-05,107990.0,107980.0,0.15178142]
[1761035760671,4.968e-05,107990.0,107980.0,0.11278142]
[1761035767747,0.18525201,107990.0,107970.0,0.02792939]
[1761035767947,0.20374152,107980.0,107970.0,0.02792939]
[1761035768148,0.01852204,107980.0,107970.0,0.34550632]
[1761035768347,0.20374152,107980.0,107970.0,0.32980602]
[1761035768548,0.20374152,107980.0,107970.0,0.30195663]
[1761035769144,0.20374152,107980.0,107970.0,0.30295663]
[1761035770372,0.20374152,107980.0,107970.0,0.30299663]
[1761035770575,0.20374152,107980.0,107970.0,0.30199663]
[1761035771173,0.20374152,107980.0,107970.0,0.30299663]
[1761035771580,0.20374152,107980.0,107970.0,0.30199663]
[1761035772303,0.38521333,107990.0,107970.0,0.30199663]
[1761035772497,0.18521948,107980.0,107970.0,0.30199663]
[1761035773862,0.38521333,107990.0,107970.0,0.30199663]
[1761035774073,0.18521948,107980.0,107970.0,0.30199663]
[1761035774289,0.18521948,107980.0,107970.0,0.00012]
[1761035775483,0.26875523,107980.0,107970.0,0.00012]
[1761035775687,3.26875523,107980.0,107970.0,0.00012]
[1761035775908,3.29661295,107980.0,107970.0,0.00012]
[1761035776813,3.63661295,107980.0,107970.0,0.00012]
[1761035779892,0.18525379,107960.0,107950.0,0.25284395]
[1761035780038,0.18523663,107970.0,107950.0,0.25284395]
[1761035780401,0.18525379,107960.0,107950.0,0.25284395]
[1761035780818,0.18523663,107970.0,107950.0,0.25284395]
[1761035781233,0.18523663,107970.0,107950.0,0.25384395]
[1761035781862,0.18525379,107960.0,107950.0,0.25384395]
[1761035782089,0.18525379,107960.0,107950.0,0.18527095]
[1761035782433,0.18527095,107950.0,107940.0,0.32978248]
[1761035782656,0.18527095,107950.0,107940.0,0.30192476]
[1761035783067,0.18525379,107960.0,107940.0,0.30192476]
[1761035783603,0.1853458,107960.0,107940.0,0.30192476]
[1761035784453,0.18527095,107950.0,107940.0,0.30192476]
[1761035784899,0.1853458,107960.0,107940.0,0.30192476]
[1761035785110,0.1853458,107960.0,107930.0,0.19457055]
[1761035785111,0.18529181,107940.0,107930.0,0.18530511]
[1761035785314,0.18527095,107950.0,107930.0,0.32047563]
[1761035785516,0.18528812,107940.0,107930.0,0.30194511]
[1761035785676,0.18527095,107950.0,107940.0,0.001]
[1761035787267,0.18527095,107950.0,107930.0,0.30400796]
[1761035787472,0.18527095,107950.0,107930.0,0.30394511]
[1761035787674,0.18527095,107950.0,107940.0,0.0007085]
[1761035791249,0.43596868,107950.0,107940.0,0.0007085]
[1761035791469,3.72673366,107950.0,107940.0,0.0007085]
[1761035791702,3.75459992,107950.0,107940.0,0.0007085]
[1761035792113,0.18530529,107930.0,107920.0,0.16829506]
[1761035792996,0.18530529,107930.0,107910.0,0.3111716]
[1761035793442,0.18532246,107920.0,107910.0,0.3111716]
[1761035793644,0.18532246,107920.0,107910.0,0.30197963]
[1761035793786,0.18530529,107930.0,107910.0,0.30197963]
[1761035794672,0.18535493,107930.0,107910.0,0.30197963]
[1761035795440,0.18535493,107930.0,107920.0,0.18532246]
[1761035795959,0.18535493,107930.0,107910.0,0.30197963]
[1761035796813,4.964e-05,107930.0,107920.0,0.18532246]
[1761035797026,0.18535493,107930.0,107920.0,0.18532246]
[1761035798162,0.18535493,107930.0,107920.0,0.18603116]
[1761035798808,4.964e-05,107930.0,107920.0,0.18603116]
[1761035799036,0.18535493,107930.0,107920.0,0.18603116]
[1761035802785,4.964e-05,107930.0,107920.0,0.18603116]
[1761035804944,0.18535493,107930.0,107920.0,0.18603116]
[1761035805408,4.964e-05,107930.0,107920.0,0.18603116]
[1761035806561,0.18535493,107930.0,107920.0,0.18603116]
[1761035808061,4.964e-05,107930.0,107920.0,0.18603116]
[1761035815972,4.964e-05,107930.0,107920.0,0.27585017]
[1761035816185,4.964e-05,107930.0,107920.0,0.31203245]
[1761035816396,4.964e-05,107930.0,107920.0,0.33989284]
[1761035816599,4.964e-05,107930.0,107920.0,0.67989284]
[1761035817665,0.34,107970.0,107960.0,0.18525379]
[1761035817865,0.34004967,107970.0,107960.0,0.18525379]
[1761035818046,0.5252863,107970.0,107960.0,0.18525379]
[1761035818252,0.5252863,107970.0,107950.0,0.30193544]
[1761035819026,0.5252863,107970.0,107950.0,0.24293544]
[1761035819443,0.5252863,107970.0,107960.0,0.18525379]
[1761035820905,0.5252863,107970.0,107950.0,0.24293544]
[1761035821121,0.18527095,107950.0,107940.0,0.18528812]
[1761035821312,0.18528812,107940.0,107930.0,0.18525544]
[1761035821518,0.18527095,107950.0,107930.0,0.30189544]
[1761035822254,0.18527095,107950.0,107940.0,0.001]
[1761035822664,0.18527095,107950.0,107930.0,0.30189544]
[1761035822880,0.18528812,107940.0,107930.0,0.30189544]
[1761035823089,0.18528812,107940.0,107930.0,0.30224976]
[1761035823309,0.18527095,107950.0,107930.0,0.30224976]
[1761035825408,0.18527095,107950.0,107930.0,0.00035432]
[1761035825409,0.52528812,107940.0,107930.0,0.00035432]
[1761035825832,0.52528812,107940.0,107930.0,0.18565961]
[1761035826045,0.52528812,107940.0,107930.0,0.18569961]
[1761035826283,0.52528812,107940.0,107930.0,0.00039432]
[1761035827618,0.52528812,107940.0,107930.0,0.18569961]
[1761035828594,0.55313589,107950.0,107940.0,0.18528812]
[1761035828803,3.45268765,107950.0,107930.0,0.00039432]
[1761035829009,0.27032539,107940.0,107930.0,0.00039432]
[1761035830195,0.38696539,107940.0,107930.0,0.00039432]
[1761035830875,0.20167727,107940.0,107930.0,0.00039432]
[1761035831089,0.38696539,107940.0,107930.0,0.00039432]
[1761035831797,0.75483269,107940.0,107930.0,0.00039432]
[1761035832861,3.75483269,107940.0,107930.0,0.00039432]
[1761035834234,3.72696539,107940.0,107930.0,0.00039432]
[1761035834865,3.72896539,107940.0,107930.0,0.00039432]
[1761035835269,3.76219748,107940.0,107930.0,0.00039432]
[1761035835478,3.72896539,107940.0,107930.0,0.00039432]
[1761035836135,0.18532246,107920.0,107910.0,0.18100029]
[1761035837368,0.18532246,107920.0,107910.0,0.18149732]
[1761035837946,0.18532084,107930.0,107910.0,0.18149732]
[1761035838163,0.18532246,107920.0,107910.0,0.18149732]
[1761035838976,0.18532246,107920.0,107910.0,0.18153732]
[1761035840149,0.18532246,107920.0,107910.0,0.20007128]
[1761035840605,0.18532246,107920.0,107910.0,0.18153732]